bitfinex/quotes_SOLUSD_20251120
["timestamp","ask_amount","ask_price","bid_price","bid_amount"]
[1763648388483,1.78,140.58,140.53,7.68600791]
[1763648388683,1.78,140.58,140.54,7.02600791]
[1763648389394,1.78,140.58,140.51,0.66]
[1763648389596,7.02600791,140.61,140.52,0.66]
[1763648389787,1.78,140.6,140.56,7.02600791]
[1763648390679,16.8148356,140.59,140.54,7.02600791]
[1763648391301,23.92811429,140.59,140.54,7.02600791]
[1763648391483,23.92811429,140.59,140.51,7.79685303]
[1763648391801,23.92811429,140.59,140.54,7.02600791]
[1763648391977,41.71031786,140.59,140.53,7.02600791]
[1763648392295,1.78,140.6,140.55,7.02600791]
[1763648392503,8.80600791,140.6,140.55,7.02600791]
[1763648392699,15.91881593,140.6,140.55,7.02600791]
[1763648392885,33.69975476,140.6,140.54,7.02600791]
[1763648393090,16.8148356,140.59,140.53,7.02600791]
[1763648393505,23.92788487,140.59,140.54,7.02600791]
[1763648393676,16.8148356,140.59,140.54,7.02600791]
[1763648393877,23.92775393,140.59,140.54,7.02600791]
[1763648394392,14.13737186,140.62,140.55,0.68]
[1763648394703,1.99999999,140.7,140.59,7.02600791]
[1763648394903,7.02600791,140.64,140.59,7.02600791]
[1763648395088,7.02600791,140.62,140.57,7.02600791]
[1763648395472,9.78882769,140.61,140.56,7.02600791]
[1763648395711,9.78882769,140.61,140.57,7.02600791]
[1763648396282,16.8148356,140.63,140.58,7.02600791]
[1763648396482,1.78,140.6,140.58,7.02600791]
[1763648396705,1.78,140.6,140.59,7.02600791]
[1763648396905,17.77233159,140.67,140.59,7.02600791]
[1763648397108,7.02600791,140.64,140.59,7.02600791]
[1763648397613,16.8148356,140.63,140.58,7.02600791]
[1763648398491,16.8148356,140.63,140.55,0.68]
[1763648398690,16.8148356,140.63,140.48,16.96960856]
[1763648398691,7.02600791,140.61,140.53,0.68]
[1763648398899,1.78,140.6,140.56,7.02600791]
[1763648399098,1.78,140.6,140.57,7.02600791]
[1763648399304,1.78,140.6,140.56,7.02600791]
[1763648399504,7.11288142,140.59,140.56,7.02600791]
[1763648399739,7.11288142,140.59,140.54,0.68]
[1763648400038,1.78,140.6,140.57,7.02600791]
[1763648400461,8.89239286,140.6,140.52,7.11626215]
[1763648400630,8.89239286,140.6,140.56,7.02600791]
[1763648400926,1.78,140.6,140.56,7.02600791]
[1763648401096,1.99999999,140.66,140.56,7.02600791]
[1763648401097,12.80705681,140.71,140.59,7.02600791]
[1763648401301,7.02600791,140.7,140.59,18.12096]
[1763648401554,16.89709306,140.69,140.61,7.11186971]
[1763648401825,7.10826537,140.69,140.64,7.02600791]
[1763648402027,16.8148356,140.68,140.63,7.02600791]
[1763648402325,1.78,140.7,140.67,7.02600791]
[1763648402530,1.78,140.7,140.68,7.02600791]
[1763648402850,1.78,140.7,140.69,7.02600791]
[1763648403000,1.78,140.75,140.67,18.12096]
[1763648403333,1.78,140.75,140.72,7.02600791]
[1763648403541,1.78,140.75,140.74,7.02600791]
[1763648403703,0.1,140.79,140.74,7.02600791]
[1763648403903,1.99999999,140.9,140.78,7.02600791]
[1763648403904,5.70023949,140.88,140.78,7.02600791]
[1763648404139,1.78,140.87,140.83,7.02600791]
[1763648404365,1.78,140.87,140.8,7.02600791]
[1763648404683,0.1,140.91,140.86,7.02600791]
[1763648404956,0.1,140.91,140.82,18.12096]
[1763648404957,0.1,140.91,140.87,18.12096]
[1763648405160,0.1,140.91,140.9,7.02600791]
[1763648405651,0.1,140.91,140.9,0.68]
[1763648405864,1.88,141.0,140.9,32.54632017]
[1763648406167,0.1,141.0,140.97,7.02600791]
[1763648406345,0.1,141.0,140.96,7.02600791]
[1763648406730,0.1,141.0,140.97,0.68]
[1763648407141,0.1,141.0,140.99,7.02600791]
[1763648407341,1.93593088,141.1,140.99,7.02600791]
[1763648407549,1.93593088,141.1,141.09,7.02600791]
[1763648407748,1.93593088,141.1,141.08,7.02600791]
[1763648407969,1.93593088,141.1,140.96,8.80600791]
[1763648407970,18.12096,141.09,140.96,8.80600791]
[1763648408157,18.12096,141.04,140.95,0.68]
[1763648408341,7.02600791,141.05,140.95,0.68]
[1763648408342,1.93593088,141.1,141.0,9.78882769]
[1763648408537,1.93593088,141.1,141.09,7.02600791]
[1763648409270,1.93593088,141.1,141.09,7.70600791]
[1763648409771,1.93593088,141.1,141.09,7.02600791]
[1763648410269,1.93593088,141.1,141.09,7.70600791]
[1763648410463,1.93593088,141.1,141.04,0.68]
[1763648410635,1.78,141.09,141.02,0.68]
[1763648410979,9.78882769,141.05,141.0,7.02600791]
[1763648411267,18.12096,141.02,140.94,0.68]
[1763648411467,62.17693638,141.1,141.01,7.02600791]
[1763648411670,0.3,141.08,141.02,7.02600791]
[1763648411889,1.78,141.07,141.05,7.02600791]
[1763648412078,19.90096,141.07,141.04,7.02600791]
[1763648412285,19.90096,141.07,140.97,0.68]
[1763648412286,18.12096,141.05,140.97,0.68]
[1763648412792,1.78,141.04,141.02,11.28519418]
[1763648412969,1.78,141.04,140.97,0.68]
[1763648413174,27.90978769,141.07,141.03,11.28519418]
[1763648413380,27.90978769,141.07,140.93,27.90978769]
[1763648413381,1.93593088,141.1,141.06,11.28519418]
[1763648413565,1.93593088,141.1,141.04,0.68]
[1763648413566,1.78,141.07,141.04,0.68]
[1763648413771,1.93593088,141.1,141.04,25.89111093]
[1763648414200,1.93593088,141.1,141.05,0.68]
[1763648414973,1.93593088,141.1,141.09,11.28519418]
[1763648415183,1.93593088,141.1,141.05,0.68]
[1763648415386,1.93593088,141.1,141.09,11.28519418]
[1763648415597,9.02316602,141.1,141.07,11.28519418]
[1763648415907,9.02316602,141.1,141.06,11.28519418]
[1763648415908,1.78,141.09,141.06,11.28519418]
[1763648416104,1.78,141.09,141.08,11.28519418]
[1763648416392,1.78,141.09,141.07,11.28519418]
[1763648416563,1.78,141.09,141.08,11.28519418]
[1763648416766,1.78,141.09,141.01,0.68]
[1763648417276,1.78,141.09,141.07,11.28519418]
[1763648417800,1.78,141.09,141.08,11.28519418]
[1763648418005,8.86780304,141.09,141.03,0.68]
[1763648418169,8.86792647,141.09,141.03,0.68]
[1763648418486,8.86792647,141.09,140.99,25.21365691]
[1763648418487,9.16792647,141.09,141.0,0.68]
[1763648418788,21.37402187,141.08,140.94,0.70952178]
[1763648418990,18.12096,141.06,141.02,11.28519418]
[1763648419174,18.12096,141.09,141.05,11.28519418]
[1763648419389,1.78,141.08,141.06,0.68]
[1763648419596,1.93593088,141.1,141.07,11.28519418]
[1763648419776,9.0231857,141.1,141.0,18.83017985]
[1763648420103,1.93593088,141.1,141.09,11.28519418]
[1763648420292,1.93593088,141.1,141.09,11.93519418]
[1763648420885,17.7004777,141.24,141.12,18.12096]
[1763648420886,7.0808364,141.23,141.12,18.12096]
[1763648421180,0.72,141.23,141.16,18.12096]
[1763648421398,0.72,141.23,141.06,3.77999999]
[1763648421399,0.72,141.22,141.06,3.77999999]
[1763648421726,2.5,141.22,141.21,11.28519418]
[1763648422027,0.72,141.25,141.21,11.28519418]
[1763648422182,7.07664001,141.31,141.17,27.90978769]
[1763648422518,2.5,141.3,141.19,0.65]
[1763648422812,9.78882769,141.29,141.24,12.23906684]
[1763648422981,22.74789453,141.29,141.15,18.12096]
[1763648423303,22.02789453,141.24,141.17,12.23906684]
[1763648423523,27.90978769,141.24,141.2,12.23906684]
[1763648423685,0.72,141.24,141.23,12.23906684]
[1763648423886,2.5,141.24,141.15,0.65]
[1763648424082,2.5,141.24,141.13,18.12096]
[1763648424083,9.58027668,141.24,141.13,18.12096]
[1763648424280,0.72,141.23,141.13,25.85658207]
[1763648424492,0.72,141.23,141.2,12.23906684]
[1763648424693,12.95906684,141.23,141.1,0.65]
[1763648424894,12.95906684,141.23,141.07,0.65]
[1763648424895,30.36002684,141.21,141.07,0.65]
[1763648425177,22.02789453,141.19,141.07,0.65]
[1763648425498,2.5,141.2,141.14,12.23906684]
[1763648425805,2.5,141.2,141.15,12.23906684]
[1763648425806,7.08315625,141.18,141.15,12.23906684]
[1763648425993,0.72,141.19,141.15,12.23906684]
[1763648426179,2.5,141.18,141.14,12.23906684]
[1763648426378,2.5,141.18,141.13,12.23906684]
[1763648426577,0.72,141.17,141.04,7.74018206]
[1763648426799,2.5,141.17,141.14,12.23906684]
[1763648427095,17.04,141.32,141.04,29.28018206]
[1763648427096,0.72,141.22,141.16,12.23906684]
[1763648427297,12.23906684,141.3,141.21,12.23906684]
[1763648427500,1.78,141.27,141.24,12.23906684]
[1763648427688,1.78,141.27,141.17,17.70805902]
[1763648427886,2.5,141.27,141.25,12.23906684]
[1763648428091,1.78,141.27,141.26,12.23906684]
[1763648428285,0.72,141.33,141.26,12.23906684]
[1763648428504,2.5,141.32,141.21,0.65]
[1763648428698,2.5,141.32,141.15,0.65]
[1763648428900,12.23906684,141.26,141.11,0.65]
[1763648429241,24.52789453,141.25,141.11,0.65]
[1763648429518,9.78882769,141.21,141.08,7.73813763]
[1763648429691,9.78882769,141.21,141.16,12.23906684]
[1763648429883,0.72,141.2,141.08,0.65]
[1763648430116,1.78,141.19,141.15,12.23906684]
[1763648430319,1.78,141.19,141.1,12.23906684]
[1763648430320,22.02789453,141.16,141.1,12.23906684]
[1763648430485,31.08002684,141.18,141.12,12.23906684]
[1763648430822,9.78882769,141.16,141.11,12.23906684]
[1763648430985,9.78882769,141.16,141.12,12.23906684]
[1763648431183,9.78882769,141.14,141.02,0.70911927]
[1763648431507,2.5,141.13,141.1,12.23906684]
[1763648431683,2.5,141.13,141.03,0.65]
[1763648431684,7.0861678,141.12,141.03,0.65]
[1763648431883,0.7,141.12,141.09,12.23906684]
[1763648432114,9.78882769,141.1,140.99,0.67]
[1763648432287,0.7,141.11,141.09,12.23906684]
[1763648432493,0.7,141.11,141.0,16.88102627]
[1763648432494,1.78,141.1,141.0,16.88102627]
[1763648432699,1.78,141.1,141.09,12.23906684]
[1763648432898,1.78,141.1,141.08,12.23906684]
[1763648433092,1.78,141.1,141.06,12.23906684]
[1763648433093,0.7,141.09,141.06,12.23906684]
[1763648433530,0.7,141.09,140.95,7.29467875]
[1763648433531,22.02789453,141.08,140.95,7.29467875]
[1763648433690,7.0896845,141.05,141.01,12.23906684]
[1763648434010,1.78,141.04,141.01,12.23906684]
[1763648434188,2.48,141.04,140.95,0.87]
[1763648434392,2.48,141.04,141.02,12.23906684]
[1763648434592,0.7,141.03,141.01,12.23906684]
[1763648434790,0.7,141.03,140.95,0.2]
[1763648435118,0.7,141.06,141.02,12.23906684]
[1763648435299,0.7,141.05,141.03,12.23906684]
[1763648435502,9.78882769,141.09,141.04,12.23906684]
[1763648435803,9.78882769,141.09,140.97,18.79096]
[1763648435804,7.083658,141.17,141.08,12.23906684]
[1763648435988,1.78,141.16,141.01,7.09149487]
[1763648436284,18.12096,141.13,141.09,12.23906684]
[1763648436489,28.60978769,141.12,141.06,12.23906684]
[1763648436709,28.60978769,141.12,140.98,18.83028047]
[1763648436710,28.60978769,141.12,141.05,12.23906684]
[1763648436916,0.7,141.11,141.05,12.23906684]
[1763648437099,1.78,141.1,141.05,12.23906684]
[1763648437296,1.78,141.1,141.04,12.23906684]
[1763648437491,0.7,141.09,141.04,12.23906684]
[1763648437694,16.87728224,141.08,141.05,12.23906684]
[1763648437900,16.87728224,141.08,141.06,12.23906684]
[1763648437901,1.78,141.07,141.06,12.23906684]
[1763648438228,2.48,141.07,141.04,12.23906684]
[1763648438424,0.7,141.06,140.97,18.83033078]
[1763648438598,0.7,141.06,141.03,12.23906684]
[1763648439100,0.7,141.06,141.02,12.23906684]
[1763648439685,0.7,141.06,140.95,7.96468683]
[1763648439686,7.0896845,141.05,140.95,0.87]
[1763648439922,9.78882769,141.04,140.98,12.23906684]
[1763648440122,10.48882769,141.04,140.99,12.23906684]
[1763648440288,9.78882769,141.02,140.95,0.2]
[1763648440494,22.02789453,141.0,140.95,0.2]
[1763648440899,9.78882769,140.96,140.85,7.0997515]
[1763648441192,9.78882769,140.94,140.89,12.23906684]
[1763648441603,2.48,140.95,140.8,0.67]
[1763648441604,9.78882769,140.92,140.8,0.67]
[1763648441840,9.78882769,140.92,140.75,1.99999999]
[1763648441841,9.78882769,140.9,140.77,7.77378631]
[1763648442001,9.78882769,140.9,140.77,0.67]
[1763648442002,1.78,140.89,140.77,0.67]
[1763648442202,1.78,140.89,140.82,12.23906684]
[1763648442203,9.78882769,140.88,140.82,12.23906684]
[1763648442539,9.78882769,140.88,140.77,0.67]
[1763648442540,10.48882769,140.88,140.77,0.67]
[1763648442743,0.7,140.87,140.77,0.67]
[1763648442895,0.7,140.87,140.71,2.49068154]
[1763648442896,0.7,140.87,140.75,0.67]
[1763648443100,0.7,140.87,140.81,12.23906684]
[1763648443320,9.78882769,140.86,140.75,0.67]
[1763648443525,22.02789453,140.86,140.72,7.7763104]
[1763648443729,7.1002556,140.84,140.8,12.23906684]
[1763648444025,2.48,140.83,140.81,12.23906684]
[1763648444222,2.48,140.83,140.8,12.23906684]
[1763648444624,0.7,140.82,140.79,12.23906684]
[1763648444828,0.7,140.82,140.73,7.77572668]
[1763648445000,1.99999999,140.96,140.81,12.23906684]
[1763648445205,0.7,140.9,140.81,0.67]
[1763648445410,1.78,140.89,140.84,12.23906684]
[1763648445613,1.78,140.89,140.85,12.23906684]
[1763648445822,0.7,140.88,140.79,42.98068014]
[1763648446049,0.7,140.88,140.84,12.23906684]
[1763648446348,7.79826299,140.88,140.84,12.23906684]
[1763648446505,7.7982652,140.88,140.84,12.23906684]
[1763648446839,0.7,140.87,140.83,12.23906684]
[1763648447041,0.7,140.87,140.84,12.23906684]
[1763648447906,0.7,140.87,140.85,12.23906684]
[1763648448603,1.78,140.86,140.78,7.103227]
[1763648448810,0.7,140.87,140.85,12.23906684]
[1763648449123,1.78,140.86,140.85,12.23906684]
[1763648449338,0.7,140.89,140.85,12.23906684]
[1763648449542,0.7,140.89,140.86,12.23906684]
[1763648449850,0.7,140.89,140.87,12.23906684]
[1763648449851,1.78,140.88,140.87,12.23906684]
[1763648450219,1.78,140.88,140.86,12.23906684]
[1763648450220,2.46,140.88,140.86,12.23906684]
[1763648450655,2.46,140.88,140.81,0.67]
[1763648450656,0.68,140.87,140.85,12.23906684]
[1763648451024,0.68,140.87,140.83,12.23906684]
[1763648451253,0.68,140.87,140.78,7.10328171]
[1763648451451,0.68,140.87,140.84,12.23906684]
[1763648451821,1.78,140.88,140.86,19.33799082]
[1763648452056,1.78,140.88,140.79,18.83123771]
[1763648452057,1.78,140.88,140.87,12.23906684]
[1763648452220,2.46,140.88,140.86,12.23906684]
[1763648452425,1.78,140.88,140.86,12.23906684]
[1763648452626,0.68,140.87,140.84,12.23906684]
[1763648454051,1.78,140.86,140.84,12.23906684]
[1763648454251,1.78,140.86,140.83,12.23906684]
[1763648454455,2.46,140.86,140.83,12.23906684]
[1763648454655,0.68,140.85,140.83,12.23906684]
[1763648454836,0.68,140.85,140.84,12.23906684]
[1763648455036,1.78,140.85,140.84,12.23906684]
[1763648455858,2.46,140.85,140.77,0.72]
[1763648456029,0.68,140.84,140.74,18.84096]
[1763648456355,0.68,140.84,140.8,12.23906684]
[1763648456738,1.78,140.83,140.8,12.23906684]
[1763648457150,0.68,140.82,140.8,12.23906684]
[1763648457544,1.78,140.81,140.8,12.23906684]
[1763648457856,0.68,140.82,140.8,12.23906684]
[1763648458155,1.78,140.81,140.78,7.10327642]
[1763648458355,1.78,140.81,140.8,12.23906684]
[1763648459040,2.46,140.81,140.79,12.23906684]
[1763648459244,1.78,140.81,140.8,12.23906684]
[1763648459733,0.68,140.84,140.8,12.23906684]
[1763648459932,0.68,140.84,140.81,12.23906684]
[1763648459933,1.78,140.83,140.81,12.23906684]
[1763648460436,2.46,140.83,140.81,12.23906684]
[1763648460637,1.78,140.82,140.81,12.23906684]
[1763648460959,9.78882769,140.89,140.82,0.72]
[1763648461268,50.0,140.98,140.82,0.72]
[1763648461269,0.68,140.97,140.88,12.23906684]
[1763648461432,35.44626033,141.06,140.96,12.23906684]
[1763648461632,2.46,140.98,140.89,0.72]
[1763648461949,2.46,140.98,140.94,12.23906684]
[1763648462151,0.68,140.97,140.88,0.72]
[1763648462466,0.68,140.97,140.93,12.23906684]
[1763648462661,12.23906684,140.94,140.7,5.86783867]
[1763648462865,29.68978769,140.93,140.85,12.23906684]
[1763648463052,18.12096,140.93,140.78,18.46728223]
[1763648463260,1.78,140.94,140.92,12.23906684]
[1763648463447,1.78,140.98,140.88,18.12096]
[1763648463629,2.46,140.97,140.93,12.23906684]
[1763648463834,7.09018718,141.04,140.96,12.23906684]
[1763648464041,18.12096,141.01,140.86,18.12096]
[1763648464244,12.23906684,141.01,140.88,18.12096]
[1763648464447,9.78882769,140.99,140.93,12.23906684]
[1763648464647,40.14885453,140.99,140.85,0.57]
[1763648464874,9.78882769,140.97,140.92,12.23906684]
[1763648465369,18.12096,140.95,140.91,12.23906684]
[1763648465745,0.68,140.94,140.91,12.23906684]
[1763648465939,7.77556359,140.94,140.91,12.23906684]
[1763648466363,0.68,140.93,140.91,12.23906684]
[1763648466564,0.68,140.93,140.92,12.23906684]
[1763648466751,7.0937926,140.97,140.92,12.23906684]
[1763648466957,2.46,140.96,140.95,12.23906684]
[1763648467161,2.46,140.96,140.94,12.23906684]
[1763648467358,2.46,140.96,140.93,12.23906684]
[1763648467839,0.68,140.95,140.92,12.23906684]
[1763648468044,0.68,140.95,140.8,11.78882768]
[1763648468045,9.78882769,140.93,140.83,0.57]
[1763648468249,9.78882769,140.93,140.89,12.23906684]
[1763648468458,2.46,140.92,140.9,12.23906684]
[1763648468655,2.46,140.92,140.88,12.23906684]
[1763648468858,0.68,140.91,140.83,7.67064105]
[1763648469087,0.68,140.91,140.88,12.23906684]
[1763648469246,0.68,140.91,140.82,7.10126402]
[1763648469439,0.68,140.91,140.87,12.23906684]
[1763648469675,9.78882769,140.9,140.78,0.57]
[1763648469849,9.78882769,140.9,140.84,12.23906684]
[1763648470050,12.23906684,140.87,140.74,0.57]
[1763648470382,9.78882769,140.85,140.79,12.23906684]
[1763648470544,22.02789453,140.85,140.71,0.57]
[1763648470882,0.68,140.84,140.78,12.23906684]
[1763648471062,0.68,140.84,140.7,25.07561573]
[1763648471063,18.12096,140.8,140.75,12.23906684]
[1763648471388,9.78882769,140.85,140.7,0.2]
[1763648471389,39.15488957,140.98,140.79,12.23906684]
[1763648471672,0.68,140.85,140.76,0.57]
[1763648471853,0.68,140.85,140.84,12.23906684]
[1763648472053,12.23906684,140.93,140.84,12.23906684]
[1763648472374,12.23906684,140.93,140.78,18.12096]
[1763648472375,37.74880576,140.96,140.87,12.23906684]
[1763648472550,37.74880576,140.96,140.8,0.57]
[1763648472551,1.78,140.95,140.8,0.57]
[1763648472755,18.12096,140.93,140.88,12.23906684]
[1763648473054,1.78,140.92,140.9,12.23906684]
[1763648473275,1.78,140.92,140.8,1.28022727]
[1763648473276,1.78,140.92,140.91,12.23906684]
[1763648473582,1.78,140.99,140.91,12.23906684]
[1763648473744,1.78,140.99,140.98,12.23906684]
[1763648474255,9.55292483,140.99,140.84,18.69096]
[1763648474460,0.68,140.98,140.93,12.23906684]
[1763648474679,1.78,140.97,140.95,12.23906684]
[1763648474858,0.68,140.96,140.93,12.23906684]
[1763648475059,0.68,140.96,140.92,12.23906684]
[1763648475680,9.78882769,140.95,140.83,7.10075978]
[1763648475886,9.78882769,140.95,140.9,12.23906684]
[1763648476060,7.09572128,140.93,140.9,12.23906684]
[1763648476262,7.77532074,140.94,140.92,12.23906684]
[1763648476461,1.78,140.93,140.92,12.23906684]
[1763648477599,2.46,140.93,140.89,12.23906684]
[1763648477772,0.68,140.92,140.89,12.23906684]
[1763648477959,24.84031226,140.9,140.85,12.23906684]
[1763648478380,0.68,140.89,140.85,12.23906684]
[1763648478693,9.78882769,140.87,140.83,12.23906684]
[1763648478888,1.78,140.88,140.83,12.23906684]
[1763648479063,10.46882769,140.87,140.82,12.23906684]
[1763648479484,10.46882769,140.86,140.8,12.23906684]
[1763648479685,10.46882769,140.86,140.79,12.23906684]
[1763648479889,9.78882769,140.84,140.79,12.23906684]
[1763648480086,7.10037352,140.84,140.82,12.23906684]
[1763648480303,1.78,140.83,140.82,12.23906684]
[1763648480630,2.48,140.83,140.74,0.57]
[1763648480919,2.48,140.83,140.81,12.23906684]
[1763648481119,7.79938241,140.86,140.82,12.23906684]
[1763648481296,0.7,140.84,140.74,7.67529605]
[1763648481614,0.7,140.84,140.81,12.23906684]
[1763648481806,0.7,140.84,140.74,7.67526827]
[1763648482012,7.8007353,140.84,140.81,12.23906684]
[1763648482213,0.7,140.83,140.81,12.23906684]
[1763648482626,0.7,140.83,140.72,0.57]
[1763648482793,9.78882769,140.82,140.79,12.23906684]
[1763648483190,0.7,140.81,140.79,12.23906684]
[1763648483501,1.78,140.8,140.79,12.23906684]
[1763648484202,0.7,140.94,140.82,18.12096]
[1763648484412,24.83165556,140.95,140.91,12.23906684]
[1763648484605,0.7,140.94,140.91,12.23906684]
[1763648484802,0.7,140.94,140.93,11.30194474]
[1763648485006,2.48,140.94,140.93,11.30194474]
[1763648485520,12.26882769,140.94,140.93,11.30194474]
[1763648485735,12.26882769,140.94,140.83,0.57]
[1763648485736,9.78882769,140.93,140.83,0.57]
[1763648485905,10.48882769,140.93,140.84,18.12096]
[1763648486100,7.0967284,140.91,140.84,18.12096]
[1763648486437,9.78882769,140.9,140.85,11.30194474]
[1763648486615,9.78882769,140.88,140.85,11.30194474]
[1763648486981,0.7,140.89,140.84,11.30194474]
[1763648487126,1.78,140.88,140.86,11.30194474]
[1763648487327,1.78,140.88,140.8,0.57]
[1763648487547,2.48,140.88,140.85,11.30194474]
[1763648487760,24.83854942,140.91,140.87,11.30194474]
[1763648487761,10.48882769,140.91,140.87,11.30194474]
[1763648487948,1.78,140.87,140.82,18.12096]
[1763648488132,8.87874352,140.87,140.86,11.30194474]
[1763648488337,9.78882769,140.91,140.86,11.30194474]
[1763648488532,9.78882769,140.91,140.8,11.30194474]
[1763648488533,0.7,140.94,140.84,18.69096]
[1763648488738,1.78,140.93,140.84,18.69096]
[1763648488932,1.78,140.93,140.84,18.12096]
[1763648489228,0.7,140.92,140.84,0.57]
[1763648489449,0.7,140.92,140.91,11.30194474]
[1763648489659,1.78,140.92,140.91,11.30194474]
[1763648490026,2.49,140.92,140.85,18.12096]
[1763648490229,9.58625679,140.92,140.91,11.30194474]
[1763648490534,8.87625679,140.92,140.89,11.30194474]
[1763648490726,8.87625679,140.92,140.88,11.30194474]
[1763648490727,24.83681881,140.92,140.88,11.30194474]
[1763648490927,2.49,140.91,140.81,0.57]
[1763648491156,9.78882769,140.9,140.87,11.30194474]
[1763648491465,10.49882769,140.9,140.87,11.30194474]
[1763648491628,0.71,140.89,140.87,11.30194474]
[1763648491829,0.71,140.89,140.85,11.30194474]
[1763648492139,1.78,140.88,140.86,11.30194474]
[1763648492329,0.71,140.9,140.86,11.30194474]
[1763648492524,1.78,140.89,140.88,11.30194474]
[1763648492728,1.78,140.89,140.8,25.22309759]
[1763648492729,1.78,140.89,140.86,11.30194474]
[1763648492931,0.71,140.88,140.85,11.30194474]
[1763648493164,9.78882769,140.87,140.84,11.30194474]
[1763648493454,9.78882769,140.87,140.82,11.30194474]
[1763648493632,10.49882769,140.86,140.82,11.30194474]
[1763648493834,0.71,140.86,140.82,11.30194474]
[1763648494034,2.49,140.85,140.82,11.30194474]
[1763648494230,9.78882769,140.84,140.72,5.66783867]
[1763648494462,10.49882769,140.84,140.79,11.30194474]
[1763648494667,2.49,140.83,140.81,11.30194474]
[1763648495148,0.71,140.82,140.81,11.30194474]
[1763648495464,1.78,140.82,140.81,11.30194474]
[1763648496042,1.78,140.82,140.76,0.57]
[1763648496243,1.78,140.82,140.81,11.30194474]
[1763648496745,1.78,140.82,140.81,7.00558726]
[1763648496971,2.49,140.82,140.81,7.00558726]
[1763648497350,2.49,140.82,140.79,7.00558726]
[1763648497560,0.71,140.81,140.79,7.00558726]
[1763648497952,0.71,140.81,140.8,7.00558726]
[1763648498152,1.78,140.82,140.8,7.00558726]
[1763648498153,18.83096,140.87,140.8,7.00558726]
[1763648498356,1.78,140.86,140.84,7.00558726]
[1763648498670,1.78,140.86,140.78,0.57]
[1763648498671,9.78882769,140.85,140.76,18.12096]
[1763648498884,0.71,140.84,140.76,18.12096]
[1763648499057,0.71,140.84,140.79,7.00558726]
[1763648499464,0.71,140.84,140.78,7.00558726]
[1763648499779,0.71,140.86,140.83,7.00558726]
[1763648499958,7.09800186,140.89,140.85,7.00558726]
[1763648500274,7.00558726,140.95,140.87,7.00558726]
[1763648500464,18.12096,140.92,140.88,7.00558726]
[1763648500776,9.78882769,140.91,140.87,7.00558726]
[1763648500964,0.71,140.91,140.87,7.00558726]
[1763648501163,9.78882769,140.89,140.86,7.00558726]
[1763648501363,1.78,140.88,140.85,7.00558726]
[1763648501677,9.78882769,140.87,140.84,7.00558726]
[1763648501877,10.49882769,140.87,140.73,0.57]
[1763648502081,1.78,140.88,140.82,7.00558726]
[1763648502082,9.78882769,140.85,140.82,7.00558726]
[1763648502272,7.1002556,140.84,140.83,7.00558726]
[1763648502454,7.8102556,140.84,140.83,7.00558726]
[1763648502778,7.09899971,140.87,140.83,7.00558726]
[1763648502987,1.78,140.86,140.85,7.00558726]
[1763648503352,2.49,140.86,140.85,7.00558726]
[1763648503551,2.49,140.86,140.8,14.10779835]
[1763648503552,2.49,140.86,140.84,7.00558726]
[1763648503978,10.49882769,140.85,140.72,12.67342593]
[1763648504159,10.49882769,140.85,140.81,7.00558726]
[1763648504357,10.49882769,140.85,140.82,7.00558726]
[1763648504358,7.1002556,140.84,140.82,7.00558726]
[1763648504860,7.1002556,140.84,140.76,7.67415469]
[1763648504861,0.71,140.83,140.76,7.67415469]
[1763648505073,1.78,140.82,140.76,0.57]
[1763648505376,1.78,140.82,140.81,7.00558726]
[1763648505986,2.49,140.82,140.81,7.00558726]
[1763648506285,9.59126402,140.82,140.81,7.00558726]
[1763648506654,9.59126402,140.82,140.8,7.00558726]
[1763648507076,1.78,140.82,140.81,7.00558726]
[1763648507582,0.71,140.87,140.81,7.00558726]
[1763648507795,9.78882769,140.93,140.81,7.00558726]
[1763648507796,1.78,140.86,140.85,7.00558726]
[1763648509390,9.78882769,140.85,140.82,7.00558726]